bitfinex/quotes_BTCUSD_20250901
["timestamp","ask_amount","ask_price","bid_price","bid_amount"]
[1756745749534,0.84853128,108920.0,108910.0,0.18925786]
[1756745749736,1.16420164,108920.0,108910.0,0.18925786]
[1756745750188,1.16420164,108920.0,108910.0,0.00562]
[1756745750615,1.16420164,108920.0,108910.0,0.18925786]
[1756745750817,1.16420164,108920.0,108910.0,0.00562]
[1756745751161,1.00708164,108920.0,108910.0,0.19155333]
[1756745751388,0.66708164,108920.0,108910.0,0.18925786]
[1756745751590,1.16047964,108920.0,108910.0,0.18925786]
[1756745751794,1.15407671,108920.0,108910.0,0.18925786]
[1756745752878,0.74177571,108920.0,108910.0,0.18925786]
[1756745753076,0.83735901,108920.0,108910.0,0.18925786]
[1756745753226,0.83735901,108920.0,108910.0,0.19025786]
[1756745754087,1.02098001,108920.0,108910.0,0.18925786]
[1756745754297,0.83735901,108920.0,108910.0,0.19225786]
[1756745754528,0.83735901,108920.0,108910.0,0.19425786]
[1756745755434,0.49708716,108920.0,108910.0,0.19425786]
[1756745755656,0.83735901,108920.0,108910.0,0.19425786]
[1756745755994,0.83735901,108920.0,108910.0,0.19125786]
[1756745756196,0.83735901,108920.0,108910.0,0.18925786]
[1756745756429,0.83735901,108920.0,108910.0,0.19125786]
[1756745756631,0.83735901,108920.0,108910.0,0.19325786]
[1756745758139,0.49735901,108920.0,108910.0,0.19325786]
[1756745758322,0.49715901,108920.0,108910.0,0.19325786]
[1756745759920,0.34031901,108920.0,108910.0,0.19325786]
[1756745760128,0.49715901,108920.0,108910.0,0.19325786]
[1756745760493,0.68078001,108920.0,108910.0,0.19325786]
[1756745760696,4.716e-05,108920.0,108910.0,0.19325786]
[1756745760897,0.15680716,108920.0,108910.0,0.19325786]
[1756745761112,0.49707901,108920.0,108910.0,0.19325786]
[1756745761914,0.68070001,108920.0,108910.0,0.19325786]
[1756745763041,0.34042816,108920.0,108910.0,0.19325786]
[1756745763448,0.68070001,108920.0,108910.0,0.19325786]
[1756745763666,0.68281001,108920.0,108910.0,0.19007786]
[1756745763873,0.68582001,108920.0,108910.0,0.00644]
[1756745764073,0.68582001,108920.0,108910.0,0.19007786]
[1756745764288,0.68281001,108920.0,108910.0,0.19007786]
[1756745765033,0.68281001,108920.0,108910.0,0.0044]
[1756745765238,0.71154323,108920.0,108910.0,0.0044]
[1756745765465,0.71154323,108920.0,108910.0,0.18803786]
[1756745765951,0.71154323,108920.0,108910.0,0.0044]
[1756745766256,0.71154323,108920.0,108910.0,0.19001786]
[1756745766467,0.70854323,108920.0,108910.0,0.19001786]
[1756745766666,0.70854323,108920.0,108910.0,0.18801786]
[1756745767467,0.70854323,108920.0,108910.0,0.18601786]
[1756745767679,0.36827138,108920.0,108910.0,0.18601786]
[1756745767904,0.70854323,108920.0,108910.0,0.18601786]
[1756745768178,0.71154323,108920.0,108910.0,0.00238]
[1756745768394,0.71154323,108920.0,108910.0,0.18701786]
[1756745768627,0.36616138,108920.0,108910.0,0.19201786]
[1756745768850,0.6477714,108920.0,108910.0,0.18901786]
[1756745769077,0.6477714,108920.0,108910.0,0.18801786]
[1756745769302,0.36811507,108920.0,108910.0,0.18801786]
[1756745769491,0.34027185,108920.0,108910.0,0.19301786]
[1756745769718,0.49687185,108920.0,108910.0,0.19301786]
[1756745770172,0.68049285,108920.0,108910.0,0.19301786]
[1756745771018,0.68260285,108920.0,108910.0,0.19001786]
[1756745771994,0.68049285,108920.0,108910.0,0.19301786]
[1756745773892,0.68260285,108920.0,108910.0,0.19001786]
[1756745775242,0.68560285,108920.0,108910.0,0.19001786]
[1756745776891,0.68260285,108920.0,108910.0,0.19001786]
[1756745777090,0.68240285,108920.0,108910.0,0.19001786]
[1756745777223,0.68029285,108920.0,108910.0,0.19001786]
[1756745777469,0.68029285,108920.0,108910.0,0.19301786]
[1756745778061,0.49667185,108920.0,108910.0,0.19001786]
[1756745778274,0.68029285,108920.0,108910.0,0.19001786]
[1756745778498,0.34027185,108920.0,108910.0,0.19301786]
[1756745778708,0.39517855,108930.0,108920.0,0.183621]
[1756745778914,0.01425019,108930.0,108920.0,0.34413626]
[1756745779115,0.34074534,108930.0,108920.0,0.344841]
[1756745781955,0.34074534,108930.0,108920.0,0.344801]
[1756745782162,0.53951936,108930.0,108920.0,0.342761]
[1756745782370,0.35591522,108930.0,108920.0,0.342761]
[1756745782583,0.54251936,108930.0,108920.0,0.342761]
[1756745783121,0.54251936,108930.0,108920.0,0.341761]
[1756745783329,0.54251936,108930.0,108920.0,0.343761]
[1756745783749,0.54251936,108930.0,108920.0,0.187601]
[1756745783949,0.54251936,108930.0,108920.0,0.343761]
[1756745784160,0.35891522,108930.0,108920.0,0.345761]
[1756745785573,0.35591522,108930.0,108920.0,0.345761]
[1756745785775,0.01564337,108930.0,108920.0,0.345761]
[1756745785976,0.01353337,108930.0,108920.0,0.348761]
[1756745786266,0.35380522,108930.0,108920.0,0.348761]
[1756745788709,0.35380522,108930.0,108920.0,0.343621]
[1756745788710,0.54251936,108930.0,108920.0,0.343621]
[1756745789036,0.54251936,108930.0,108920.0,0.345601]
[1756745789691,0.35891522,108930.0,108920.0,0.345601]
[1756745790583,0.54251936,108930.0,108920.0,0.345601]
[1756745790805,0.35891522,108930.0,108920.0,0.345601]
[1756745791806,0.35380522,108930.0,108920.0,0.345601]
[1756745792015,0.35380522,108930.0,108920.0,0.348601]
[1756745792643,0.01353337,108930.0,108920.0,0.348601]
[1756745793038,0.35380522,108930.0,108920.0,0.348601]
[1756745793839,0.35380522,108930.0,108920.0,0.44051699]
[1756745793840,0.00047349,108930.0,108920.0,0.44051699]
[1756745797823,0.00047349,108930.0,108920.0,0.46145581]
[1756745800559,0.00047349,108930.0,108920.0,0.46121581]
[1756745813801,0.00047349,108930.0,108920.0,0.80148766]
[1756745814656,0.00047349,108930.0,108920.0,1.22884066]
[1756745817489,0.00047349,108930.0,108920.0,1.22880066]
[1756745819457,0.00047349,108930.0,108920.0,0.88852881]
[1756745819682,0.00047349,108930.0,108920.0,1.22880066]
[1756745822473,0.00047349,108930.0,108920.0,0.73304881]
[1756745822681,0.00047349,108930.0,108920.0,0.48354881]
[1756745822682,0.34578534,108930.0,108920.0,0.48354881]
[1756745822897,0.00551349,108930.0,108920.0,0.48354881]
[1756745823719,0.34578534,108930.0,108920.0,0.48354881]
[1756745825574,0.34578534,108930.0,108920.0,0.32806881]
[1756745825803,0.34578534,108930.0,108920.0,0.48354881]
[1756745827621,0.34578534,108930.0,108920.0,0.48567881]
[1756745830272,0.00047349,108930.0,108920.0,0.48567881]
[1756745830482,0.00047349,108930.0,108920.0,0.48889881]
[1756745832828,0.34594534,108930.0,108920.0,0.48354881]
[1756745833024,0.86982133,108930.0,108920.0,0.46260999]
[1756745833238,0.86982133,108930.0,108920.0,0.004]
[1756745833475,0.89681376,108930.0,108920.0,0.004]
[1756745834572,1.23681376,108930.0,108920.0,0.004]
[1756745834796,1.27556417,108930.0,108920.0,0.004]
[1756745835603,1.40405174,108930.0,108920.0,0.004]
[1756745836347,1.43104417,108930.0,108920.0,0.004]
[1756745837091,1.27556417,108930.0,108920.0,0.004]
[1756745837331,1.43104417,108930.0,108920.0,0.004]
[1756745838439,1.47292557,108930.0,108920.0,0.004]
[1756745838649,1.43417516,108930.0,108920.0,0.004]
[1756745841585,1.27869516,108930.0,108920.0,0.004]
[1756745841803,1.43417516,108930.0,108920.0,0.004]
[1756745842016,1.05320962,108930.0,108920.0,0.187621]
[1756745842230,0.50115349,108930.0,108920.0,0.19204626]
[1756745842443,0.50115349,108930.0,108920.0,0.187621]
[1756745842444,1.02621719,108930.0,108920.0,0.187621]
[1756745842645,1.20982133,108930.0,108920.0,0.18991626]
[1756745843510,1.20982133,108930.0,108920.0,0.187621]
[1756745845102,1.02305719,108930.0,108920.0,0.189751]
[1756745845333,0.68278534,108930.0,108920.0,0.189751]
[1756745846249,0.34074534,108930.0,108920.0,0.28488699]
[1756745847335,0.34074534,108930.0,108920.0,0.31248399]
[1756745849344,0.34594534,108930.0,108920.0,0.30713399]
[1756745849495,0.34594534,108930.0,108920.0,0.46482399]
[1756745849700,0.34278534,108930.0,108920.0,0.46482399]
[1756745850581,0.34594534,108930.0,108920.0,0.46482399]
[1756745851223,0.68621719,108930.0,108920.0,0.46265399]
[1756745852010,0.71320962,108930.0,108920.0,0.43718699]
[1756745852499,0.71320962,108930.0,108920.0,0.43505699]
[1756745852701,0.71320962,108930.0,108920.0,0.46478399]
[1756745852909,0.89681376,108930.0,108920.0,0.343101]
[1756745853520,0.89681376,108930.0,108920.0,0.187621]
[1756745854446,0.71320962,108930.0,108920.0,0.187621]
[1756745854837,0.68621719,108930.0,108920.0,0.187621]
[1756745855680,0.68621719,108930.0,108920.0,0.189641]
[1756745856170,0.34278534,108930.0,108920.0,0.189641]
[1756745856394,0.34074534,108930.0,108920.0,0.28468699]
[1756745857777,0.34074534,108930.0,108920.0,0.31228399]
[1756745858211,0.34074534,108930.0,108920.0,0.28468699]
[1756745858586,0.34074534,108930.0,108920.0,0.30562581]
[1756745858801,0.34074534,108930.0,108920.0,0.33322281]
[1756745865561,0.34074534,108930.0,108920.0,0.33009281]
[1756745865771,0.34597534,108930.0,108920.0,0.48355281]
[1756745865981,0.68624719,108930.0,108920.0,0.48355281]
[1756745866196,0.6857737,108930.0,108920.0,0.48355281]
[1756745867099,0.71276613,108930.0,108920.0,0.32807281]
[1756745867290,0.71276613,108930.0,108920.0,0.48355281]
[1756745867550,0.71276613,108930.0,108920.0,0.32807281]
[1756745867783,0.89637027,108930.0,108920.0,0.215218]
[1756745868011,0.89637027,108930.0,108920.0,0.187621]
[1756745869311,0.89637027,108930.0,108920.0,0.343101]
[1756745869777,0.89637027,108930.0,108920.0,0.187621]
[1756745869954,0.89637027,108930.0,108920.0,0.343101]
[1756745870169,0.89637027,108930.0,108920.0,0.187621]
[1756745872089,0.89637027,108930.0,108920.0,0.004]
[1756745872503,0.89637027,108930.0,108920.0,0.187621]
[1756745874190,0.89637027,108930.0,108920.0,0.004]
[1756745876895,1.05185027,108930.0,108920.0,0.004]
[1756745883333,1.02481784,108930.0,108920.0,0.187621]
[1756745884281,0.6857737,108930.0,108920.0,0.187621]
[1756745884522,0.50094185,108930.0,108920.0,0.189641]
[1756745884731,0.68454599,108930.0,108920.0,0.187621]
[1756745885241,1.02481784,108930.0,108920.0,0.187621]
[1756745886124,1.02481784,108930.0,108920.0,0.004]
[1756745886315,1.02481784,108930.0,108920.0,0.187621]
[1756745890935,0.86937784,108930.0,108920.0,0.187621]
[1756745891082,1.02170784,108930.0,108920.0,0.189601]
[1756745891282,1.02468784,108930.0,108920.0,0.189601]
[1756745891486,1.02468784,108930.0,108920.0,0.187621]
[1756745892134,0.86924784,108930.0,108920.0,0.187621]
[1756745892338,1.02468784,108930.0,108920.0,0.187621]
[1756745892741,1.02170784,108930.0,108920.0,0.189601]
[1756745892941,1.02468784,108930.0,108920.0,0.187621]
[1756745894257,1.0250881,108930.0,108920.0,0.187621]
[1756745895206,0.8696481,108930.0,108920.0,0.187621]
[1756745895411,1.0250881,108930.0,108920.0,0.187621]
[1756745896936,0.18562414,108930.0,108920.0,0.189601]
[1756745897142,0.68153612,108930.0,108920.0,0.189601]
[1756745897342,1.0249881,108930.0,108920.0,0.187621]
[1756745897780,0.52405981,108940.0,108930.0,0.18360414]
[1756745897781,0.49544,108940.0,108930.0,0.18360414]
[1756745897981,0.49544,108940.0,108930.0,0.18787919]
[1756745897982,1.17638396,108940.0,108930.0,0.18787919]
[1756745898197,1.17840396,108940.0,108930.0,0.18787919]
[1756745899067,1.17840396,108940.0,108930.0,0.18887919]
[1756745899274,1.18138396,108940.0,108930.0,0.18658414]
[1756745900121,0.84082647,108940.0,108930.0,0.18658414]
[1756745900401,0.68538647,108940.0,108930.0,0.18658414]
[1756745900579,0.83582647,108940.0,108930.0,0.18658414]
[1756745900944,0.83784647,108940.0,108930.0,0.18658414]
[1756745902867,0.49746,108940.0,108930.0,0.18658414]
[1756745903063,0.83784647,108940.0,108930.0,0.18658414]
[1756745903636,0.84082647,108940.0,108930.0,0.18658414]
[1756745904745,0.49578647,108940.0,108930.0,0.18958414]
[1756745905045,0.49578647,108940.0,108930.0,0.34498414]
[1756745905250,0.34038647,108940.0,108930.0,0.18958414]
[1756745905474,0.34038647,108940.0,108930.0,0.34498414]
[1756745905881,0.76286296,108950.0,108940.0,0.18358729]
[1756745906097,1.10526943,108950.0,108940.0,0.18358729]
[1756745906887,0.76488296,108950.0,108940.0,0.18358729]
[1756745907119,1.10526943,108950.0,108940.0,0.18358729]
[1756745907461,1.13226186,108950.0,108940.0,0.18358729]
[1756745908689,1.13326186,108950.0,108940.0,0.18358729]
[1756745908898,1.13226186,108950.0,108940.0,0.18358729]
[1756745911124,1.13226186,108950.0,108940.0,0.18458729]
[1756745916432,0.97686186,108950.0,108940.0,0.18458729]
[1756745916641,1.13226186,108950.0,108940.0,0.18458729]
[1756745917111,1.12928186,108950.0,108940.0,0.18662729]
[1756745917334,1.10480486,108950.0,108940.0,0.18662729]
[1756745917639,1.10480486,108950.0,108940.0,0.18458729]
[1756745920361,1.10476486,108950.0,108940.0,0.18458729]
[1756745922189,1.44511335,108950.0,108940.0,0.18458729]
[1756745922433,1.44511335,108950.0,108940.0,0.001]
[1756745925681,1.44511335,108950.0,108940.0,0.18458729]
[1756745925931,1.44511335,108950.0,108940.0,0.001]
[1756745928632,1.28975335,108950.0,108940.0,0.18458729]
[1756745928843,1.44511335,108950.0,108940.0,0.18458729]
[1756745930553,1.44511335,108950.0,108940.0,0.18448776]
[1756745935284,1.44507335,108950.0,108940.0,0.18652776]
[1756745935903,1.44507335,108950.0,108940.0,0.18448776]
[1756745936107,1.26150246,108950.0,108940.0,0.18448776]
[1756745936324,1.4450729,108950.0,108940.0,0.18448776]
[1756745937875,1.4450729,108950.0,108940.0,0.00090047]
[1756745939481,1.4450729,108950.0,108940.0,0.18448776]
[1756745939907,1.4450729,108950.0,108940.0,0.00090047]
[1756745940753,1.4450729,108950.0,108940.0,0.18448776]
[1756745941390,1.4450729,108950.0,108940.0,0.00090047]
[1756745944283,1.4450729,108950.0,108940.0,0.18448776]
[1756745944916,1.4450729,108950.0,108940.0,0.00090047]
[1756745948041,1.40421222,108950.0,108940.0,0.00090047]
[1756745948874,1.40417222,108950.0,108940.0,0.00090047]
[1756745949543,1.24889222,108950.0,108940.0,0.18448776]
[1756745950000,1.40417222,108950.0,108940.0,0.18448776]
[1756745951110,1.40417222,108950.0,108940.0,0.00090047]
[1756745954498,1.43176722,108950.0,108940.0,0.00090047]
[1756745955766,1.47320694,108950.0,108940.0,0.00090047]
[1756745956003,1.81357442,108950.0,108940.0,0.00090047]
[1756745956218,1.83335011,108950.0,108940.0,0.00090047]
[1756745956400,1.49298263,108950.0,108940.0,0.00090047]
[1756745958635,1.49294263,108950.0,108940.0,0.00090047]
[1756745961007,1.33770263,108950.0,108940.0,0.00090047]
[1756745961255,1.49294263,108950.0,108940.0,0.00090047]
[1756745966454,1.26583106,108950.0,108940.0,0.00090047]
[1756745966672,1.12071255,108950.0,108940.0,0.00090047]
[1756745967091,1.13187715,108950.0,108940.0,0.00090047]
[1756745969191,1.13183715,108950.0,108940.0,0.00090047]
[1756745972895,0.06575203,108950.0,108940.0,0.00843531]
[1756745973130,0.35153208,108950.0,108940.0,0.1920226]
[1756745973365,0.35153208,108950.0,108940.0,0.18972776]
[1756745973777,0.35086388,108960.0,108950.0,0.18357044]
[1756745973974,0.69159884,108960.0,108950.0,0.19110507]
[1756745974199,1.18679884,108960.0,108950.0,0.18881044]
[1756745974954,1.18779884,108960.0,108950.0,0.18881044]
[1756745975174,1.18779884,108960.0,108950.0,0.21640244]
[1756745975367,1.22860656,108960.0,108950.0,0.21640244]
[1756745975665,1.18779884,108960.0,108950.0,0.21640244]
[1756745975871,1.19850368,108960.0,108950.0,0.21640244]
[1756745976092,1.38719727,108960.0,108950.0,0.21326244]
[1756745976343,1.38619727,108960.0,108950.0,0.029692]
[1756745976624,1.38619727,108960.0,108950.0,0.21326244]
[1756745976858,1.38310727,108960.0,108950.0,0.21326244]
[1756745977102,1.41011167,108960.0,108950.0,0.21326244]
[1756745977320,1.22655808,108960.0,108950.0,0.21326244]
[1756745977751,1.22450808,108960.0,108950.0,0.21637244]
[1756745978300,1.40806167,108960.0,108950.0,0.21837244]
[1756745978500,1.41011167,108960.0,108950.0,0.21526244]
[1756745978699,1.41320167,108960.0,108950.0,0.21726244]
[1756745986815,1.19742368,108960.0,108950.0,0.21726244]
[1756745987255,1.19742368,108960.0,108950.0,0.22037244]
[1756745989588,1.38302727,108960.0,108950.0,0.21726244]
[1756745991806,1.19947368,108960.0,108950.0,0.21726244]
[1756745992249,1.38302727,108960.0,108950.0,0.21726244]
[1756745992587,1.04435368,108960.0,108950.0,0.21726244]
[1756745992801,0.51668872,108960.0,108950.0,0.22037244]
[1756745993008,1.19742368,108960.0,108950.0,0.22037244]
[1756745994313,1.19742368,108960.0,108950.0,0.21726244]
[1756745994314,1.19947368,108960.0,108950.0,0.21726244]
[1756745994943,1.38611727,108960.0,108950.0,0.21726244]
[1756745995185,1.38611727,108960.0,108950.0,0.21516244]
[1756745995412,1.41312167,108960.0,108950.0,0.21516244]
[1756745995595,1.41312167,108960.0,108950.0,0.21713244]
[1756745995808,1.22442808,108960.0,108950.0,0.21713244]
[1756745996359,1.06930808,108960.0,108950.0,0.21713244]
[1756745996614,1.19943368,108960.0,108950.0,0.21713244]
[1756745997046,1.04435368,108960.0,108950.0,0.21713244]
[1756745997284,1.19738368,108960.0,108950.0,0.22024244]
[1756745998013,0.7019362,108960.0,108950.0,0.22024244]
[1756745998730,1.04230368,108960.0,108950.0,0.22024244]
[1756745999447,0.7019362,108960.0,108950.0,0.22024244]
[1756745999940,0.8570162,108960.0,108950.0,0.22024244]
[1756746000438,1.04570979,108960.0,108950.0,0.21516244]
[1756746000662,1.38607727,108960.0,108950.0,0.21516244]
[1756746000886,1.20252368,108960.0,108950.0,0.21713244]
[1756746001375,1.19738368,108960.0,108950.0,0.22024244]
[1756746001640,1.19943368,108960.0,108950.0,0.21713244]
[1756746003080,1.38607727,108960.0,108950.0,0.37020244]
[1756746003300,1.38607727,108960.0,108950.0,0.21516244]
[1756746003758,1.41308167,108960.0,108950.0,0.21516244]
[1756746003978,1.41308167,108960.0,108950.0,0.031592]
[1756746004206,1.41308167,108960.0,108950.0,0.21516244]
[1756746004441,0.73234671,108960.0,108950.0,0.21516244]
[1756746004690,1.41308167,108960.0,108950.0,0.21516244]
[1756746005126,1.41304167,108960.0,108950.0,0.21516244]
[1756746006898,1.38603727,108960.0,108950.0,0.21516244]
[1756746011952,1.23099727,108960.0,108950.0,0.21516244]
[1756746012197,0.36156872,108960.0,108950.0,0.22039244]
[1756746012398,1.04230368,108960.0,108950.0,0.22039244]
[1756746012623,1.04230368,108960.0,108950.0,0.31230843]
[1756746012624,0.3619362,108960.0,108950.0,0.31230843]
[1756746012804,0.01086388,108960.0,108950.0,0.33324725]
[1756746013230,0.36375916,108960.0,108950.0,0.33002725]
[1756746013413,0.36375916,108960.0,108950.0,0.48502725]
[1756746013769,0.70215664,108960.0,108950.0,0.48824725]
[1756746013998,0.36163588,108960.0,108950.0,0.48824725]
[1756746015369,0.36360588,108960.0,108950.0,0.30908843]
[1756746015632,0.39357632,108960.0,108950.0,0.46207843]
[1756746017792,0.39357632,108960.0,108950.0,0.37016244]
[1756746018007,0.57712991,108960.0,108950.0,0.37016244]
[1756746019079,0.91734411,108960.0,108950.0,0.37016244]
[1756746019795,0.39357632,108960.0,108950.0,0.34257044]
[1756746020581,0.57712991,108960.0,108950.0,0.34257044]
[1756746020821,0.91734411,108960.0,108950.0,0.34257044]
[1756746021895,0.91734411,108960.0,108950.0,0.34458044]
[1756746021896,0.39062632,108960.0,108950.0,0.34458044]
[1756746022075,0.36360588,108960.0,108950.0,0.34458044]
[1756746022720,0.36655588,108960.0,108950.0,0.34458044]
[1756746022923,0.36655588,108960.0,108950.0,0.34257044]
[1756746023864,0.55010947,108960.0,108950.0,0.34257044]
[1756746026346,0.36655588,108960.0,108950.0,0.34257044]
[1756746026768,0.55010947,108960.0,108950.0,0.34257044]
[1756746027902,0.36647328,108960.0,108950.0,0.34257044]
[1756746028651,0.55002687,108960.0,108950.0,0.34257044]
[1756746029852,0.91726151,108960.0,108950.0,0.15892]
[1756746030226,0.91726151,108960.0,108950.0,0.004]
[1756746032296,1.25726151,108960.0,108950.0,0.004]
[1756746033284,1.41218151,108960.0,108950.0,0.004]
[1756746033792,1.43977651,108960.0,108950.0,0.004]
[1756746035913,0.75934811,108960.0,108950.0,0.004]
[1756746036133,1.28485651,108960.0,108950.0,0.004]
[1756746036389,1.43977651,108960.0,108950.0,0.004]
[1756746038941,1.71488697,108960.0,108950.0,0.004]
[1756746039183,2.15214878,108960.0,108950.0,0.004]
[1756746039433,6.17593281,108960.0,108950.0,0.004]
[1756746039655,7.19657541,108960.0,108950.0,0.004]
[1756746039897,7.21370499,108960.0,108950.0,0.004]
[1756746040140,7.05878499,108960.0,108950.0,0.004]
[1756746040370,7.21370499,108960.0,108950.0,0.002]
[1756746040599,7.21570499,108960.0,108950.0,0.002]
[1756746040834,7.21570499,108960.0,108920.0,0.00014166]
[1756746040835,0.18360414,108930.0,108920.0,0.00014166]
[1756746041072,1.01895254,108930.0,108920.0,0.00014166]
[1756746041301,1.02412254,108930.0,108920.0,0.00014166]
[1756746041529,0.18575414,108930.0,108920.0,0.00225166]
[1756746041742,0.34067414,108930.0,108920.0,0.00225166]
[1756746041958,1.02412254,108930.0,108920.0,0.00225166]
[1756746042189,0.86920254,108930.0,108920.0,0.00225166]
[1756746042402,1.02412254,108930.0,108920.0,0.00225166]
[1756746042614,0.34369414,108930.0,108920.0,0.00225166]
[1756746042831,1.02110254,108930.0,108920.0,0.00225166]
[1756746043710,0.52596834,108930.0,108920.0,0.00225166]
[1756746043920,0.68088834,108930.0,108920.0,0.00644166]
[1756746044140,0.67873834,108930.0,108920.0,0.00644166]
[1756746044589,0.72055359,108930.0,108920.0,0.00644166]
[1756746046045,0.72270359,108930.0,108920.0,0.00325166]
[1756746046252,0.72572359,108930.0,108920.0,0.00114166]
[1756746046450,1.49785378,108930.0,108920.0,0.00114166]
[1756746046670,1.52487422,108930.0,108920.0,0.00114166]
[1756746046889,1.55247722,108930.0,108920.0,0.00114166]
[1756746047131,0.87204882,108930.0,108920.0,0.00114166]
[1756746047370,1.46056123,108930.0,108920.0,0.00114166]
[1756746047760,0.78013283,108930.0,108920.0,0.00114166]
[1756746048120,1.46056123,108930.0,108920.0,0.00114166]
[1756746048326,1.12034703,108930.0,108920.0,0.00114166]
[1756746049204,0.75311239,108930.0,108920.0,0.00114166]
[1756746049429,1.09332659,108930.0,108920.0,0.00114166]
[1756746049670,1.18524258,108930.0,108920.0,0.00114166]
[1756746050171,1.18524258,108930.0,108920.0,0.00325166]
[1756746050172,1.09332659,108930.0,108920.0,0.00325166]
[1756746050622,1.09332659,108930.0,108920.0,0.00114166]
[1756746051113,1.09332659,108930.0,108920.0,0.00325166]
[1756746051558,0.75311239,108930.0,108920.0,0.00114166]
[1756746051773,1.09348659,108930.0,108920.0,0.00325166]
[1756746051993,1.09348659,108930.0,108920.0,0.00114166]
[1756746052244,0.75327239,108930.0,108920.0,0.00325166]
[1756746052500,0.74810239,108930.0,108920.0,0.00644166]
[1756746052741,1.09046659,108930.0,108920.0,0.00325166]
[1756746052960,1.08831659,108930.0,108920.0,0.00325166]
[1756746053169,1.09050659,108930.0,108920.0,0.00325166]
[1756746053889,1.08835659,108930.0,108920.0,0.00644166]
[1756746054118,1.08835659,108930.0,108920.0,0.00325166]
[1756746054119,1.09050659,108930.0,108920.0,0.00325166]
[1756746056475,1.09352659,108930.0,108920.0,0.00325166]
[1756746057842,1.09352659,108930.0,108920.0,0.00114166]
[1756746058068,1.09352659,108930.0,108920.0,0.00325166]
[1756746060056,0.93840659,108930.0,108920.0,0.00325166]
[1756746060285,0.56668825,108930.0,108920.0,0.18687266]
[1756746060512,0.56453825,108930.0,108920.0,0.19006266]
[1756746060719,0.53693525,108930.0,108920.0,0.19006266]
[1756746062291,0.53348525,108930.0,108920.0,0.19006266]
[1756746062740,0.72225939,108930.0,108920.0,0.18687266]
[1756746062949,0.71708939,108930.0,108920.0,0.19006266]
[1756746063156,0.53348525,108930.0,108920.0,0.19006266]
[1756746064256,0.71708939,108930.0,108920.0,0.19006266]
[1756746064474,0.53348525,108930.0,108920.0,0.18687266]
[1756746064681,1.06247359,108930.0,108920.0,0.00114166]
[1756746064904,1.42970823,108930.0,108920.0,0.00114166]
[1756746065978,1.45731123,108930.0,108920.0,0.00114166]
[1756746067886,1.73146197,108930.0,108920.0,0.00114166]
[1756746068126,1.7511954,108930.0,108920.0,0.00114166]
[1756746068897,1.7511954,108930.0,108920.0,0.00014166]
[1756746069343,1.76834023,108930.0,108920.0,0.00014166]
[1756746069548,1.76934023,108930.0,108920.0,0.00014166]
[1756746070005,1.84571508,108930.0,108920.0,0.00014166]
[1756746070423,1.87878974,108930.0,108920.0,0.00014166]
[1756746070805,6.90341691,108930.0,108920.0,0.00014166]
[1756746071014,6.25594762,108930.0,108920.0,0.00014166]
[1756746071274,6.93637602,108930.0,108920.0,0.00014166]
[1756746071517,6.90341691,108930.0,108920.0,0.00014166]
[1756746072021,6.80055541,108930.0,108920.0,0.00014166]
[1756746072486,6.64527541,108930.0,108920.0,0.00014166]
[1756746072709,6.80055541,108930.0,108920.0,0.00014166]
[1756746072899,6.64527541,108930.0,108920.0,0.00014166]
[1756746073165,6.80055541,108930.0,108920.0,0.00014166]
[1756746073582,6.8924714,108930.0,108920.0,0.00014166]
[1756746073810,6.72004222,108930.0,108920.0,0.00014166]
[1756746074043,6.93412254,108930.0,108920.0,0.00014166]
[1756746074666,6.93408254,108930.0,108920.0,0.00014166]
[1756746075108,6.77884254,108930.0,108920.0,0.00014166]
[1756746075335,6.93408254,108930.0,108920.0,0.00014166]
[1756746076442,6.68692655,108930.0,108920.0,0.00014166]
[1756746076640,6.84212655,108930.0,108920.0,0.00014166]
[1756746078299,6.68692655,108930.0,108920.0,0.00014166]
[1756746078521,6.80237518,108930.0,108920.0,0.00014166]
[1756746078722,6.79595229,108930.0,108920.0,0.00014166]
[1756746079046,6.84197578,108930.0,108920.0,0.00014166]
[1756746079511,6.64079229,108930.0,108920.0,0.00014166]
[1756746079695,6.47103572,108930.0,108920.0,0.00014166]
[1756746079895,6.31587572,108930.0,108920.0,0.00014166]
[1756746080103,1.47099572,108930.0,108920.0,0.00014166]
[1756746080314,1.47099572,108930.0,108920.0,0.00214166]
[1756746080525,1.12776152,108930.0,108920.0,0.00214166]
[1756746080953,0.38836133,108930.0,108920.0,0.00532166]
[1756746081159,0.86656577,108930.0,108920.0,0.00532166]
[1756746081361,0.8636792,108930.0,108920.0,0.00532166]
[1756746081587,0.8636792,108930.0,108920.0,0.18894266]
[1756746081588,0.52784163,108930.0,108920.0,0.18894266]
[1756746081811,0.07027356,108930.0,108920.0,0.18894266]
[1756746082005,0.19779056,108930.0,108920.0,0.18894266]
[1756746082432,0.04267056,108930.0,108920.0,0.18894266]
[1756746082853,0.001,108930.0,108920.0,0.52915686]
[1756746083041,0.001,108930.0,108920.0,0.96107285]
[1756746083283,0.38082062,108940.0,108930.0,0.18360414]
[1756746083614,0.19723329,108940.0,108930.0,0.18878414]
[1756746084223,0.72103478,108940.0,108930.0,0.00518]
[1756746084449,0.72308478,108940.0,108930.0,0.18560414]
[1756746084664,0.75010522,108940.0,108930.0,0.003]
[1756746085088,0.40989102,108940.0,108930.0,0.18660414]
[1756746085315,0.74805522,108940.0,108930.0,0.18660414]
[1756746085723,0.02702044,108940.0,108930.0,0.18978414]
[1756746085935,0.29097589,108950.0,108930.0,0.18978414]
[1756746086152,0.21119737,108950.0,108940.0,0.18676729]
[1756746086372,0.027598,108950.0,108940.0,0.18676729]
[1756746086640,0.182918,108950.0,108940.0,0.18876729]
[1756746086931,0.33889044,108950.0,108940.0,0.18876729]
[1756746087150,0.15532,108950.0,108940.0,0.18876729]
[1756746087374,0.15632,108950.0,108940.0,0.18876729]
[1756746087592,0.001,108950.0,108940.0,0.18876729]
[1756746088253,0.001,108950.0,108940.0,0.62089748]
[1756746088467,0.001,108950.0,108940.0,0.43600328]
[1756746088729,0.17665908,108960.0,108950.0,0.18357044]
[1756746088730,0.01078128,108960.0,108950.0,0.18357044]
[1756746088933,0.01078128,108960.0,108950.0,0.28196106]
[1756746089166,0.01078128,108960.0,108950.0,0.27966643]
[1756746090316,0.01078128,108960.0,108950.0,0.43798643]
[1756746090538,0.53454907,108960.0,108950.0,0.19057044]
[1756746090768,0.54520133,108960.0,108950.0,0.19057044]
[1756746091241,0.54520133,108960.0,108950.0,0.19375044]
[1756746091662,0.02143354,108960.0,108950.0,0.19075044]
[1756746091885,0.01078128,108960.0,108950.0,0.28266643]
[1756746092107,0.01078128,108960.0,108950.0,0.28466643]
[1756746092327,0.01078128,108960.0,108950.0,0.28166643]
[1756746092542,0.01078128,108960.0,108950.0,0.28366643]
[1756746092955,0.01078128,108960.0,108950.0,0.27966643]
[1756746093075,0.01078128,108960.0,108950.0,0.43894643]
[1756746093290,0.01078128,108960.0,108950.0,0.44194643]
[1756746093491,0.01078128,108960.0,108950.0,0.78224063]
[1756746093722,0.01078128,108960.0,108950.0,0.28666643]